Cogmind - Beta 15 @@@ ROGUE MODE // 2025.06.10 @ 06:01:17 Player: Florist Result: Destroyed by H-88 Terminator with KE Penetrator Performance ------------- Evolutions (8) 4000 Regions Visited (17) 3400 Robots Destroyed (130) 650 Value Destroyed (2838) 2838 Prototype IDs (12) 240 Alien Tech Used (5) 1000 Bonus (3704) 3704 TOTAL SCORE: 15832 Bonus ------- Follower Combat Kills 304 Network Hubs Disabled 400 Used Core Reset Matrix 3000 Cogmind --------- Core Integrity 0/1450 Matter 59/300 Energy 100/100 System Corruption 10% Temperature Cool (37) Movement Core (50) Location -2/Research Parts ------- > --- POWER (2) -------- (None) > --- PROPULSION (7) --- (None) > --- UTILITY (10) ----- Machine Analyzer Enhanced Optical Array Advanced Signal Interpreter Advanced Signal Interpreter Advanced Hacking Suite > --- WEAPON (4) ------- (None) > --- INVENTORY (5) ---- Advanced Power Amplifier Core Stripper Peak State ------------ > --- POWER ------------ Particle Reactor Light Particle Reactor > --- PROPULSION ------- Improved VTOL Module Improved VTOL Module Biomechanical Wings Q-thruster Q-thruster Q-thruster Improved Diametric Drive > --- UTILITY ---------- Advanced Cooling System Structural Scanner Machine Analyzer Enhanced Optical Array Long-range Sensor Array Advanced Signal Interpreter Improved Hacking Suite Advanced Hacking Suite System Shield Advanced System Shield > --- WEAPON ----------- Core Stripper > --- INVENTORY -------- Advanced Power Amplifier System Shield High-powered Transdimensional Reconstructor Subatomic Replicator [Rating: 141] Favorites ----------- Power Ion Engine Engine Ion Engine Power Core Micro Nuclear Core Reactor Light Particle Reactor Propulsion Improved VTOL Module Treads Light Treads Leg Titanium Leg Wheel Wheel Flight Unit Improved VTOL Module Utility High-capacity Storage Unit Device Structural Scanner Storage High-capacity Storage Unit Processor Machine Analyzer Hackware Improved Hacking Suite Protection Medium Armor Plating Weapon Light Assault Rifle Energy Gun Small Laser Ballistic Gun Light Assault Rifle Ballistic Cannon Heavy Gauss Cannon Launcher Rocket Launcher Special Weapon Improved Plasma Cutter Impact Weapon Great Maul Slashing Weapon Falx Piercing Weapon Spear Build | -11 -10 -9 -8 -7 -7 -7 -6 -5 -5 -5 -5 -5 -4 -3 -3 -3 -2 ------- Run | Yrd Mat Mat Mat Fac Was Fac Fac Fac Ext Cet Arc Hub Fac Res Qua Sec Res Slots Evolved 16 | . . 2 2 2 . . 2 2 . . . . 2 2 . . 2 Power 1 | . . . . . . . . 1 . . . . . . . . . Propulsion 5 | . . 2 . 1 . . . 1 . . . . . 1 . . . Utility 8 | . . . 2 1 . . 2 . . . . . 2 1 . . . Weapon 2 | . . . . . . . . . . . . . . . . . 2 Parts Attached 113 | 7 6 15 14 8 . 4 8 4 5 . 2 4 7 3 18 . 8 Power 19 | 1 1 1 2 . . 2 2 . 3 . 1 . 2 1 2 . 1 Engine 9 | 1 1 1 1 . . 1 . . 2 . 1 . 1 . . . . Core 5 | . . . 1 . . 1 2 . 1 . . . . . . . . Reactor 5 | . . . . . . . . . . . . . 1 1 2 . 1 Propulsion 28 | 2 . 6 5 4 . 2 1 1 . . . . 1 1 3 . 2 Treads 11 | 2 . 6 3 . . . . . . . . . . . . . . Leg 1 | . . . 1 . . . . . . . . . . . . . . Wheel 1 | . . . . . . . . . . . . . . . . . 1 Hover . | . . . . . . . . . . . . . . . . . . Flight 15 | . . . 1 4 . 2 1 1 . . . . 1 1 3 . 1 Utility 38 | 2 2 3 4 3 . . 3 2 1 . 1 3 4 1 7 . 2 Device 15 | 1 . . 1 2 . . 1 . . . . 3 2 1 4 . . Storage 2 | 1 1 . . . . . . . . . . . . . . . . Processor 8 | . . . . 1 . . . 2 1 . . . 1 . 1 . 2 Hackware 6 | . . . . . . . 2 . . . 1 . 1 . 2 . . Protection 7 | . 1 3 3 . . . . . . . . . . . . . . Artifact . | . . . . . . . . . . . . . . . . . . Weapon 28 | 2 3 5 3 1 . . 2 1 1 . . 1 . . 6 . 3 Energy Gun 2 | 1 . . . . . . . . . . . . . . 1 . . Energy Cannon . | . . . . . . . . . . . . . . . . . . Ballistic Gun 12 | 1 2 5 2 . . . . . . . . 1 . . 1 . . Ballistic Cannon 2 | . . . . . . . . . . . . . . . . . 2 Launcher 2 | . . . 1 . . . . . 1 . . . . . . . . Special Weapon 3 | . . . . . . . 1 1 . . . . . . 1 . . Impact Weapon 4 | . 1 . . 1 . . . . . . . . . . 1 . 1 Slashing Weapon 2 | . . . . . . . 1 . . . . . . . 1 . . Piercing Weapon 1 | . . . . . . . . . . . . . . . 1 . . Special Melee Weapon . | . . . . . . . . . . . . . . . . . . Unidentified Prototypes 13 | . . 1 1 . . 2 1 . . . . 1 1 1 5 . . Parts Lost 47 | . 1 5 6 . . . 1 1 3 . . 3 . 5 1 12 9 Power 9 | . 1 . . . . . . 1 1 . . 1 . 2 . 2 1 Propulsion 15 | . . 2 2 . . . . . . . . 1 . 1 1 5 3 Utility 13 | . . 1 2 . . . . . 1 . . 1 . 1 . 5 2 Weapon 10 | . . 2 2 . . . 1 . 1 . . . . 1 . . 3 Highest Loss Streak 12 | . 1 1 3 . . . 1 1 3 . . 3 . 2 1 12 4 To Critical Strikes . | . . . . . . . . . . . . . . . . . . Average Backups 11 | 2 15 19 19 6 5 5 4 4 5 5 5 4 3 3 4 3 2 Power . | . 1 1 . . . . . . . . . . . . . . . Propulsion 2 | 1 5 4 4 1 1 1 1 1 1 1 1 . . . . . . Utility 4 | . 5 8 6 2 3 3 1 2 3 3 3 3 2 2 2 2 1 Weapon 2 | . 4 5 6 1 . . . 1 . . . . . . . . 1 Tool/Special . | . . . . . . . . . . . . . . . . . . Unused Backups 20 | . 1 5 5 6 . . . 1 . . . . . . . 1 1 Power . | . . . . . . . . . . . . . . . . . . Propulsion 10 | . 1 2 4 3 . . . . . . . . . . . . . Utility 5 | . . 1 1 . . . . 1 . . . . . . . 1 1 Weapon 5 | . . 2 . 3 . . . . . . . . . . . . . Tool/Special . | . . . . . . . . . . . . . . . . . . Average Slot Usage (%) 90 | . 99 92 82 92 100 99 99 95 97 88 91 94 84 84 89 79 29 Engine 7 | . 13 11 5 7 7 2 . . 4 5 8 10 5 4 . . . Core 1 | . . . 3 . . 4 6 8 4 5 2 . . . . . . Reactor 1 | . . . . . . . . . . . . . 2 3 8 6 . Treads 17 | . 28 37 35 2 . . . . . . . . . . . . . Flight 14 | . . . . 34 38 38 33 34 35 35 35 35 29 28 30 26 1 Device 8 | . 7 . . 21 23 23 26 23 20 11 11 10 11 14 13 8 . Storage 6 | . 14 11 9 . . . . . . . . . . . . . . Processor 5 | . . . . 6 7 7 6 8 13 17 17 17 15 14 14 14 16 Hackware 4 | . . . . . . . 5 5 5 5 8 11 13 14 17 18 5 Protection 5 | . 6 10 11 7 7 7 6 2 . . . . . . . . . Ballistic Gun 12 | . 26 21 17 1 . . . . . . . 1 . . . . . Impact Weapon 1 | . 1 . . 6 7 7 3 . . . . . . . . 3 . Slashing Weapon 1 | . . . . . . . 2 5 5 5 5 5 5 2 2 . . Peak Build Rating 141 | 7 11 19 24 35 33 41 54 68 71 66 71 78 91 95 141 134 66 Average Rating 38 | 5 8 14 20 30 33 38 49 62 65 66 69 71 78 88 106 116 37 On Entrance 48 | . 7 10 19 22 33 33 40 51 63 66 66 71 70 90 85 121 32 Naked Turns . | . . . . . . . . . . . . . . . . . . Heaviest Build 65 | 13 56 58 65 60 21 22 25 29 29 21 25 30 30 30 47 45 27 Greatest Support 86 | 40 40 86 86 83 25 25 25 30 30 30 30 31 31 38 47 41 10 Greatest Overweight (x) 5 | . 1 2 . . . . 1 . . . . . 1 . 1 1 5 Average Overweight (x) . | . . . . . . . . . . . . . . . . . . Largest Inventory Capacity 20 | 8 20 20 20 20 5 5 5 5 5 5 5 5 5 5 5 5 5 Average Capacity 12 | 7 18 20 20 6 5 5 5 5 5 5 5 5 5 5 5 5 5 Most Carried 20 | 5 20 20 20 20 5 5 5 5 5 5 5 5 5 5 5 5 5 Average Carried 11 | 2 15 19 19 6 5 5 4 4 5 5 5 4 3 3 4 4 3 Final Capacity 20 | 8 20 20 20 5 5 5 5 5 5 5 5 5 5 5 5 5 5 Final Carried 20 | 5 20 19 20 5 5 5 5 5 5 5 5 4 5 5 5 5 3 Class Distribution -------------------- 44% | Mutant 19% | Scout 17% | Hacker-Scout 12% | Scavenger-Mutant Dominant Class ---------------- Mutant | -10/Materials Scavenger-Mutant | -9/Materials Mutant | -8/Materials Scout | -7/Factory Scout | -7/Waste Scout | -7/Factory Scout | -6/Factory Scout | -5/Factory Scout | -5/Extension Scout | -5/Cetus Hacker-Scout | -5/Archives Hacker-Scout | -5/Hub_04(d) Hacker-Scout | -4/Factory Hacker-Scout | -3/Research Hacker-Scout | -3/Quarantine Hacker-Assassin | -3/Section 7 Mutant | -2/Research Resources | -11 -10 -9 -8 -7 -7 -7 -6 -5 -5 -5 -5 -5 -4 -3 -3 -3 -2 ----------- Run | Yrd Mat Mat Mat Fac Was Fac Fac Fac Ext Cet Arc Hub Fac Res Qua Sec Res Matter Collected 2742 | 242 332 606 736 102 . 100 36 99 118 . 40 70 23 23 31 24 160 Remotely . | . . . . . . . . . . . . . . . . . . Salvage Created 4502 | 146 534 1291 1036 107 . 459 36 278 101 . 67 317 23 23 31 17 36 Parts 249 | 22 41 72 49 . . 3 7 11 8 . 4 19 5 4 1 . 3 Haulers Intercepted 11 | . 2 2 5 . . 2 . . . . . . . . . . . Recyclers Shooed 10 | . 3 6 . . . . . 1 . . . . . . . . . Parts Field Recycled . | . . . . . . . . . . . . . . . . . . Retrieved Matter . | . . . . . . . . . . . . . . . . . . Parts Self-Destructed . | . . . . . . . . . . . . . . . . . . Prevented . | . . . . . . . . . . . . . . . . . . Kills | -11 -10 -9 -8 -7 -7 -7 -6 -5 -5 -5 -5 -5 -4 -3 -3 -3 -2 ------- Run | Yrd Mat Mat Mat Fac Was Fac Fac Fac Ext Cet Arc Hub Fac Res Qua Sec Res Combat Hostiles Destroyed 63 | . 14 23 22 . . . . . 2 . . 1 . . . . 1 Guns 57 | . 14 23 20 . . . . . . . . . . . . . . Cannons 1 | . . . . . . . . . . . . . . . . . 1 AOE 5 | . . . 2 . . . . . 2 . . 1 . . . . . Classes Destroyed 14 | 1 6 3 1 . . . . . . . . 2 . . . . 1 Worker 6 | . 1 . . . . . 1 . . . . 3 . . . 1 . Builder 5 | . . . . . . . . . . . . 3 1 . . . 1 Tunneler 9 | 7 . . . . . . . 2 . . . . . . . . . Hauler 11 | . 2 2 5 . . 2 . . . . . . . . . . . Recycler 9 | . . 3 . . . 4 . 1 . . . 1 . . . . . Mechanic 6 | . . . 1 2 . 1 . 1 1 . . . . . . . . Operator 9 | . 1 2 . . . . 1 1 1 . 2 . . 1 . . . Drone 1 | . . . . . . . . . . . . 1 . . . . . Watcher 13 | . 3 4 1 . . 2 . 1 . . . 1 . . 1 . . Swarmer 25 | . 8 9 8 . . . . . . . . . . . . . . Grunt 25 | . 6 6 12 . . . . . 1 . . . . . . . . Brawler 2 | . . 1 . . . . . . 1 . . . . . . . . Sentry 9 | . . 7 2 . . . . . . . . . . . . . . Programmer 1 | . . . . . . . . . . . . . . . . . 1 Best Kill Streak 9 | 4 4 3 9 1 . 6 1 3 2 . 2 6 1 . 1 1 1 Combat Bots Only 4 | . 3 3 4 . . . . . 2 . . 1 . . . . 1 Max Kills in Single Turn 6 | 1 2 1 1 1 . 1 1 1 1 . 1 6 1 1 1 1 1 Gunslinging 1 | . 1 . . . . . . . . . . . . . . . . Exploded 1 | . . . 1 . . . . . 1 . . 1 . . . . . Melee . | . . . . . . . . . . . . . . . . . . Uniques/NPCs Destroyed . | . . . . . . . . . . . . . . . . . . Combat | -11 -10 -9 -8 -7 -7 -7 -6 -5 -5 -5 -5 -5 -4 -3 -3 -3 -2 -------- Run | Yrd Mat Mat Mat Fac Was Fac Fac Fac Ext Cet Arc Hub Fac Res Qua Sec Res Hostile Shots Fired 761 | . 71 136 107 11 . 12 34 1 26 2 9 17 2 32 42 105 154 Missed 275 | . 18 25 20 6 . 8 19 . 14 . 6 10 2 19 26 49 53 Hits 486 | . 53 111 87 5 . 4 15 1 12 2 3 7 . 13 16 56 101 Projectile 486 | . 53 111 87 5 . 4 15 1 12 2 3 7 . 13 16 56 101 Critical Strikes 12 | . . 2 3 . . . 1 . . . . . . . 2 1 3 Part Disruptions 1 | . . . . . . . . . . . . . . . 1 . . Damage Taken 8474 | . 514 1185 1164 138 . 43 198 71 315 46 88 297 . 525 384 1189 2317 Core 2778 | . 139 150 130 10 . 31 50 17 34 . 58 101 . 149 64 383 1462 Absorbed by Shields 5 | . . . . . . . . . . . . . . 5 . . . Regen/Repaired (Parts) 480 | . . 124 . 40 . . . . . . . . 70 . . 246 . Core Remaining (%) 77 | 100 44 62 76 . . 94 94 . . . . 79 100 . . 46 . Volleys Fired 290 | 15 64 105 76 . . . . 1 6 . . 5 . . . . 18 Largest 2 | 2 2 2 2 . . . . 1 1 . . 1 . . . . 1 Hottest 60 | 60 40 50 50 . . . . 20 36 . . 30 . . . . 55 Shots Fired 542 | 29 128 207 148 . . . . 1 6 . . 5 . . . . 18 Gun 514 | 29 128 207 145 . . . . . . . . 5 . . . . . Cannon 18 | . . . . . . . . . . . . . . . . . 18 Launcher 9 | . . . 3 . . . . . 6 . . . . . . . . Special 1 | . . . . . . . . 1 . . . . . . . . . Kinetic 518 | 15 128 207 145 . . . . . . . . 5 . . . . 18 Thermal 15 | 14 . . . . . . . 1 . . . . . . . . . Explosive 9 | . . . 3 . . . . . 6 . . . . . . . . Electromagnetic . | . . . . . . . . . . . . . . . . . . Robot Hit Streak 15 | 6 12 15 9 . . . . . . . . . . . . . 4 Robot Miss Streak 7 | 2 3 7 4 . . . . 1 . . . . . . . . 2 Penetration Max . | . . . . . . . . . . . . . . . . . . Secondary Targets 8 | . 4 2 2 . . . . . . . . . . . . . . Max Gunslinging Chain 1 | . 1 1 1 . . . . . . . . . . . . . . Shots Hit Robots 385 | 18 72 132 102 5 . 15 5 13 2 . 4 2 2 2 1 2 8 Core Hits 184 | 11 32 60 48 . . 2 1 6 6 . . 15 . . . . 3 Critical Kills . | . . . . . . . . . . . . . . . . . . Critical Parts Destroyed 6 | . 1 1 . 1 . 3 . . . . . . . . . . . Critical Strikes 8 | . 1 1 . 1 . 3 1 . . . . . . 1 . . . Destroy 2 | . 1 1 . . . . . . . . . . . . . . . Smash 4 | . . . . 1 . 3 . . . . . . . . . . . Sever 2 | . . . . . . . 1 . . . . . . 1 . . . Melee Attacks 158 | . 1 . . 16 . 31 16 24 3 2 5 23 7 19 6 5 . Kinetic 5 | . . . . . . . . . . . . . . . . 5 . Impact 55 | . 1 . . 16 . 31 7 . . . . . . . . . . Slashing 98 | . . . . . . . 9 24 3 2 5 23 7 19 6 . . Piercing . | . . . . . . . . . . . . . . . . . . Sneak Attacks 30 | . . . . 2 . 8 3 4 1 . 4 1 2 2 1 2 . Combat Hostiles . | . . . . . . . . . . . . . . . . . . Follow-up Attacks . | . . . . . . . . . . . . . . . . . . Damage Inflicted 10376 | 188 833 1481 2058 302 . 1250 390 838 564 . 449 970 191 232 108 124 398 Guns 4207 | 188 824 1481 1714 . . . . . . . . . . . . . . Cannons 390 | . . . . . . . . . . . . . . . . . 390 Explosions 1582 | . . . 344 . . . . . 413 . . 825 . . . . . Melee 4180 | . . . . 302 . 1250 390 838 151 . 449 145 191 232 108 124 . Ramming 17 | . 9 . . . . . . . . . . . . . . . 8 Kinetic 4606 | 73 824 1481 1714 . . . . . . . . . . . . 124 390 Thermal 115 | 115 . . . . . . . . . . . . . . . . . Explosive 757 | . . . 344 . . . . . 413 . . . . . . . . Electromagnetic 825 | . . . . . . . . . . . . 825 . . . . . Impact 1552 | . . . . 302 . 1250 . . . . . . . . . . . Slashing 2504 | . . . . . . . 390 838 151 . 449 145 191 232 108 . . Piercing . | . . . . . . . . . . . . . . . . . . Highest Corruption 10 | . . . . 1 1 1 1 . . . . 5 . . 1 1 10 Average Corruption 2 | . . . . 1 1 1 1 . . . . 3 . . 1 1 9 Corruption Purged . | . . . . . . . . . . . . . . . . . . Corruption Blocked . | . . . . . . . . . . . . . . . . . . Effects 21 | . . . . . 1 . 2 . . . . 4 . . 2 1 11 Message Errors 6 | . . . . . . . 1 . . . . 1 . . 1 . 3 Matter Fused 3 | . . . . . . . . . . . . 1 . . . . 2 Heat Flow Errors 2 | . . . . . . . . . . . . . . . . 1 1 Energy Discharges 3 | . . . . . . . 1 . . . . . . . . . 2 Parts Fused 1 | . . . . . . . . . . . . . . . . . 1 Data Loss (minor) 2 | . . . . . . . . . . . . 1 . . 1 . . Data Loss (major) 2 | . . . . . . . . . . . . 1 . . . . 1 Alerts 2 | . . . . . 1 . . . . . . . . . . . 1 Overload Shots . | . . . . . . . . . . . . . . . . . . Overflow Damage 1806 | . . . 8 209 . 573 72 141 53 . 309 127 131 67 53 . 63 Projectiles 63 | . . . . . . . . . . . . . . . . . 63 Explosions 118 | . . . 8 . . . . . . . . 110 . . . . . Melee 1625 | . . . . 209 . 573 72 141 53 . 309 17 131 67 53 . . Knockbacks 4 | . . . . 1 . . . . . . . . . . . . 3 Impact 1 | . . . . 1 . . . . . . . . . . . . . Kinetic 3 | . . . . . . . . . . . . . . . . . 3 Secondary . | . . . . . . . . . . . . . . . . . . Self-Inflicted Damage 209 | . . . . . . . . . . . . 205 . . . . 4 Shots 2 | . . . . . . . . . . . . 2 . . . . . Rammed 7 | . 1 . . . . . . . . . . . . . . . 6 Targets Rammed 7 | . 1 . . . . . . . . . . . . . . . 6 Kicked . | . . . . . . . . . . . . . . . . . . Crushed . | . . . . . . . . . . . . . . . . . . Highest Temperature 312 | 40 18 29 157 48 79 74 . 11 296 29 . . 276 . . 312 187 Average Temperature 39 | 18 6 6 29 16 38 17 . 4 81 12 . . 146 . . 120 113 Received Heat Transfer 1743 | . 174 327 603 12 . 12 60 . 63 9 27 . . 45 30 282 99 Siege Activations . | . . . . . . . . . . . . . . . . . . Martial Activations . | . . . . . . . . . . . . . . . . . . Shielding Activations . | . . . . . . . . . . . . . . . . . . Robots Disrupted . | . . . . . . . . . . . . . . . . . . Combat Hostiles . | . . . . . . . . . . . . . . . . . . Robots Corrupted 5 | . . . . 1 . 3 . . . . . 1 . . . . . Combat Hostiles . | . . . . . . . . . . . . . . . . . . Parts Fried 15 | . . . . . . 6 . . . . . 9 . . . . . Impact Corruptions 21 | . . . . 6 . 15 . . . . . . . . . . . Robots Melted . | . . . . . . . . . . . . . . . . . . Combat Hostiles . | . . . . . . . . . . . . . . . . . . Parts Melted . | . . . . . . . . . . . . . . . . . . Heat Transferred 250 | 250 . . . . . . . . . . . . . . . . . Parts Sabotaged . | . . . . . . . . . . . . . . . . . . Parts Stolen . | . . . . . . . . . . . . . . . . . . Parts Stripped 4 | . . . . . . . . . . . . . . . . 4 . Power Chain Reactions . | . . . . . . . . . . . . . . . . . . Alert | -11 -10 -9 -8 -7 -7 -7 -6 -5 -5 -5 -5 -5 -4 -3 -3 -3 -2 ------- Run | Yrd Mat Mat Mat Fac Was Fac Fac Fac Ext Cet Arc Hub Fac Res Qua Sec Res Maximum Alert Level 2 | . . 1 1 . . . . . . . . 2 1 . . 1 . Low Security (%) 85 | 100 100 77 26 100 100 100 100 100 100 100 100 85 32 100 100 95 100 Level 1 14 | . . 22 73 . . . . . . . . 8 67 . . 4 . Level 2 . | . . . . . . . . . . . . 5 . . . . . Level 3 . | . . . . . . . . . . . . . . . . . . Level 4 . | . . . . . . . . . . . . . . . . . . Level 5 . | . . . . . . . . . . . . . . . . . . High Security . | . . . . . . . . . . . . . . . . . . Max Security . | . . . . . . . . . . . . . . . . . . Peak Influence 657 | 10 144 256 326 134 1 96 70 42 193 86 30 657 316 126 147 215 159 Initial 316 | . . 1 104 134 1 . 46 25 15 74 30 . 316 18 76 13 92 Average 84 | 1 43 124 220 70 . 24 31 17 110 73 2 100 180 64 81 40 40 Influence Increases 5217 | 35 431 813 644 93 . 216 165 121 358 22 10 791 75 308 220 372 543 Destroy 0b10 Robot/C 1420 | . 280 460 440 . . . . . 100 . . . . . . . 140 Destroy 0b10 Robot/NC 335 | 35 35 55 35 10 . 45 5 30 10 . 10 45 5 . 5 5 5 Destroy Leader 358 | . 60 152 82 . . 8 . 2 20 . . 2 . . 2 . 30 Allied During Kill 113 | . . . . . . . . . 6 . . . . . . . 107 Successful Hack 276 | . 26 20 5 29 . 32 14 21 11 7 . 58 2 6 27 18 . Disable Machine 330 | . 15 15 45 . . . . 15 . 15 . 165 15 . 30 15 . Destroy Structure 630 | . . 6 22 9 . 11 11 8 46 . . 446 8 32 6 4 21 Partial Spotted 390 | . . . . 30 . 60 75 30 30 . . 30 15 60 45 . 15 Lose Combat Pursuer 1365 | . 15 105 15 15 . 60 60 15 135 . . 45 30 210 105 330 225 Influence Decreases 5098 | 35 427 570 595 384 5 120 209 141 257 79 86 144 687 207 332 231 589 Entered New Map 1003 | . . 3 143 162 4 . 50 27 17 59 46 . 331 17 60 11 73 Time Decay 3080 | 35 417 517 392 222 1 120 149 114 150 20 40 114 138 140 262 100 149 Lost Part 440 | . 10 50 60 . . . 10 . 30 . . 30 . 50 10 120 70 Lost Ally 357 | . . . . . . . . . 60 . . . . . . . 297 Purge Threat 218 | . . . . . . . . . . . . . 218 . . . . Squads Dispatched 41 | . 3 2 2 4 . 3 5 1 2 . . 1 2 5 4 3 4 Investigation 12 | . 2 1 1 2 . 1 3 . . . . 1 . 1 . . . Extermination 11 | . . . . 2 . 1 1 1 . . . . 1 1 3 . 1 Reinforcement 17 | . 1 1 1 . . . 1 . 2 . . . 1 3 1 3 3 Assault . | . . . . . . . . . . . . . . . . . . Garrison 1 | . . . . . . 1 . . . . . . . . . . . Intercept . | . . . . . . . . . . . . . . . . . . Searches Triggered . | . . . . . . . . . . . . . . . . . . Construction Impeded 2 | . . . . . . . . . 1 . . . . . . . 1 Haulers Reinforced 1 | . . . . . . . . . . . . . . . . 1 . Active Scanning Responses . | . . . . . . . . . . . . . . . . . . Cargo Convoy Interrupts . | . . . . . . . . . . . . . . . . . . Stealth | -11 -10 -9 -8 -7 -7 -7 -6 -5 -5 -5 -5 -5 -4 -3 -3 -3 -2 --------- Run | Yrd Mat Mat Mat Fac Was Fac Fac Fac Ext Cet Arc Hub Fac Res Qua Sec Res Distress Signals 18 | . 2 3 2 1 . 1 1 1 . . . 1 . 1 1 3 1 Communications Jammed . | . . . . . . . . . . . . . . . . . . Distress Signals . | . . . . . . . . . . . . . . . . . . Times Spotted 314 | . 29 42 30 3 6 9 15 6 18 5 6 8 2 21 27 46 41 Peak Tracking Total 21 | . 4 9 5 2 6 3 13 3 6 5 4 4 3 8 9 21 17 Tactical Retreats 41 | . 1 4 1 1 . 2 2 1 6 . . 2 1 8 3 5 4 Traps | -11 -10 -9 -8 -7 -7 -7 -6 -5 -5 -5 -5 -5 -4 -3 -3 -3 -2 ------- Run | Yrd Mat Mat Mat Fac Was Fac Fac Fac Ext Cet Arc Hub Fac Res Qua Sec Res Traps Triggered 9 | . 1 . 1 3 . . 1 . . . . 1 . 2 . . . Indirectly . | . . . . . . . . . . . . . . . . . . Trap Hack Attempts . | . . . . . . . . . . . . . . . . . . Triggered . | . . . . . . . . . . . . . . . . . . Disarmed . | . . . . . . . . . . . . . . . . . . Reprogrammed . | . . . . . . . . . . . . . . . . . . Reused . | . . . . . . . . . . . . . . . . . . Traps Extracted . | . . . . . . . . . . . . . . . . . . Installed . | . . . . . . . . . . . . . . . . . . Triggered . | . . . . . . . . . . . . . . . . . . Machines | -11 -10 -9 -8 -7 -7 -7 -6 -5 -5 -5 -5 -5 -4 -3 -3 -3 -2 ---------- Run | Yrd Mat Mat Mat Fac Was Fac Fac Fac Ext Cet Arc Hub Fac Res Qua Sec Res Machines Disabled 22 | . 1 1 3 . . . . 1 . 1 . 11 1 . 2 1 . Max in Single Turn 6 | . 1 1 2 . . . . 1 . 1 . 6 1 . 1 1 . Garrison Access 3 | . . . . . . 1 . . . . . 1 1 . . . . Network Hub 2 | . . . . . . . . . . . . 2 . . . . . Machines Repaired . | . . . . . . . . . . . . . . . . . . Machines Dismantled . | . . . . . . . . . . . . . . . . . . Machines Sabotaged . | . . . . . . . . . . . . . . . . . . Overloaded Fab Kills . | . . . . . . . . . . . . . . . . . . Hacking | -11 -10 -9 -8 -7 -7 -7 -6 -5 -5 -5 -5 -5 -4 -3 -3 -3 -2 --------- Run | Yrd Mat Mat Mat Fac Was Fac Fac Fac Ext Cet Arc Hub Fac Res Qua Sec Res Machines Accessed 80 | . 8 11 1 5 . 4 10 8 5 1 . 9 8 3 5 1 1 Terminals 60 | . 7 9 1 2 . 2 6 6 5 1 . 8 3 3 5 1 1 Fabricators 3 | . . . . 1 . . 1 1 . . . . . . . . . Repair Stations 3 | . . 1 . 1 . . . . . . . . 1 . . . . Recycling Units 6 | . 1 . . . . 1 1 1 . . . . 2 . . . . Scanalyzers 3 | . . 1 . 1 . . . . . . . . 1 . . . . Garrison Access 5 | . . . . . . 1 2 . . . . 1 1 . . . . Total Hacks 238 | . 23 34 3 15 . 12 25 15 12 3 . 24 27 13 23 4 5 Successful 112 | . 9 21 1 5 . 5 9 9 5 1 . 10 19 4 12 2 . Failed 126 | . 14 13 2 10 . 7 16 6 7 2 . 14 8 9 11 2 5 Catastrophic 14 | . . 1 . 1 . 3 2 1 . 1 . . 1 2 . 1 1 Database Lockouts . | . . . . . . . . . . . . . . . . . . Manual 108 | . 18 20 3 3 . 3 11 6 4 . . 9 4 9 13 . 5 Terminals 189 | . 21 29 3 6 . 6 17 12 12 3 . 22 13 13 23 4 5 Fabricators 8 | . . . . 5 . . 2 1 . . . . . . . . . Repair Stations 10 | . . 3 . 2 . . . . . . . . 5 . . . . Recycling Units 13 | . 2 . . . . 4 2 2 . . . . 3 . . . . Scanalyzers 6 | . . 2 . 2 . . . . . . . . 2 . . . . Garrison Access 12 | . . . . . . 2 4 . . . . 2 4 . . . . Terminal Hacks 46 | . 2 7 . . . 1 3 4 4 1 . 6 8 2 6 2 . Record 1 | . . . . . . . . . . . . . . . 1 . . Open Door 6 | . . . . . . . . 1 3 1 . . . 1 . . . Level Access Points 4 | . . . . . . . 1 1 . . . 1 . . . 1 . Branch Access Points 4 | . . 1 . . . . . . . . . 1 . 1 1 . . Emergency Access Points 1 | . . . . . . . . . . . . . . . . 1 . Machine Index 1 | . . . . . . . . . . . . 1 . . . . . Terminal Index 5 | . . 1 . . . . 1 . . . . 1 . . 2 . . Alert Level 2 | . . . . . . . . . . . . 1 1 . . . . Unreport Threat 2 | . . . . . . . . . . . . . 2 . . . . Locate Traps 13 | . 1 4 . . . 1 1 1 . . . 1 3 . 1 . . Maintenance Status 1 | . . . . . . . . . . . . . 1 . . . . Hauler Manifests 3 | . 1 1 . . . . . . . . . . 1 . . . . Zone Layout 3 | . . . . . . . . 1 1 . . . . . 1 . . Fabricator Hacks 1 | . . . . . . . . 1 . . . . . . . . . Network Status 1 | . . . . . . . . 1 . . . . . . . . . Repair Station Hacks 8 | . . 2 . 2 . . . . . . . . 4 . . . . Scan Component 4 | . . 1 . 1 . . . . . . . . 2 . . . . Repair 4 | . . 1 . 1 . . . . . . . . 2 . . . . Recycling Unit Hacks 5 | . . . . . . 1 1 1 . . . . 2 . . . . Retrieve Components 5 | . . . . . . 1 1 1 . . . . 2 . . . . Scanalyzer 6 | . . 2 . 2 . . . . . . . . 2 . . . . Insert Component 3 | . . 1 . 1 . . . . . . . . 1 . . . . Analyze 3 | . . 1 . 1 . . . . . . . . 1 . . . . Garrison Access Hacks 3 | . . . . . . 1 . . . . . 1 1 . . . . Seal Access 3 | . . . . . . 1 . . . . . 1 1 . . . . Unauthorized Hacks 43 | . 7 10 1 1 . 2 5 3 1 . . 3 2 2 6 . . Terminals 43 | . 7 10 1 1 . 2 5 3 1 . . 3 2 2 6 . . Assimilate 2 | . . . . . . . 1 . . . . . . 1 . . . Botnet 35 | . 5 9 1 1 . 2 4 2 1 . . 3 2 1 4 . . Operators 6 | . 2 1 . . . . . 1 . . . . . . 2 . . Fabricators . | . . . . . . . . . . . . . . . . . . Repair Stations . | . . . . . . . . . . . . . . . . . . Recycling Units . | . . . . . . . . . . . . . . . . . . Scanalyzers . | . . . . . . . . . . . . . . . . . . Garrison Access . | . . . . . . . . . . . . . . . . . . Data Cores Recovered 1 | . . . . . . . . 1 . . . . . . . . . Used . | . . . . . . . . . . . . . . . . . . Hacking Detections 56 | . 6 6 1 3 . 3 10 6 3 1 . 8 3 1 3 1 1 Full Trace Events 11 | . 2 1 . 2 . 1 3 . . . . 1 . 1 . . . Feedback Events 1 | . . . . . . . . . . . . 1 . . . . . Corruption 1 | . . . . . . . . . . . . 1 . . . . . Feedback Blocked . | . . . . . . . . . . . . . . . . . . Robot Schematics Acquired . | . . . . . . . . . . . . . . . . . . Robots Built . | . . . . . . . . . . . . . . . . . . Authchips . | . . . . . . . . . . . . . . . . . . Time . | . . . . . . . . . . . . . . . . . . Total Robot Build Rating . | . . . . . . . . . . . . . . . . . . Part Schematics Acquired 3 | . . 1 . 1 . . . . . . . . 1 . . . . Parts Built . | . . . . . . . . . . . . . . . . . . Authchips . | . . . . . . . . . . . . . . . . . . Time . | . . . . . . . . . . . . . . . . . . Total Part Build Rating . | . . . . . . . . . . . . . . . . . . Parts Repaired 4 | . . 1 . 1 . . . . . . . . 2 . . . . Time 176 | . . 26 . 30 . . . . . . . . 120 . . . . Parts Recycled . | . . . . . . . . . . . . . . . . . . Recycled Matter . | . . . . . . . . . . . . . . . . . . Retrieved Matter . | . . . . . . . . . . . . . . . . . . Retrieved Components 10 | . . . . . . . 3 3 . . . . 4 . . . . Parts Scanalyzed 3 | . . 1 . 1 . . . . . . . . 1 . . . . Part Schematics Acquired 3 | . . 1 . 1 . . . . . . . . 1 . . . . Parts Damaged . | . . . . . . . . . . . . . . . . . . Bothacking | -11 -10 -9 -8 -7 -7 -7 -6 -5 -5 -5 -5 -5 -4 -3 -3 -3 -2 ------------ Run | Yrd Mat Mat Mat Fac Was Fac Fac Fac Ext Cet Arc Hub Fac Res Qua Sec Res Used RIF Installer . | . . . . . . . . . . . . . . . . . . Robots Hacked . | . . . . . . . . . . . . . . . . . . Non-combat . | . . . . . . . . . . . . . . . . . . Combat . | . . . . . . . . . . . . . . . . . . Robot Hacks Applied . | . . . . . . . . . . . . . . . . . . Relay Couplers Released . | . . . . . . . . . . . . . . . . . . Fabnet Peak Effective % . | . . . . . . . . . . . . . . . . . . Robots Rewired . | . . . . . . . . . . . . . . . . . . Allies Hacked . | . . . . . . . . . . . . . . . . . . Hacks Repelled . | . . . . . . . . . . . . . . . . . . Allies | -11 -10 -9 -8 -7 -7 -7 -6 -5 -5 -5 -5 -5 -4 -3 -3 -3 -2 -------- Run | Yrd Mat Mat Mat Fac Was Fac Fac Fac Ext Cet Arc Hub Fac Res Qua Sec Res Total Allies 20 | . . . . . . . 1 . 3 . . . . 1 . . 15 Largest Group 10 | . . . . . . . . . 2 . . . . . . . 10 Highest-Rated Group 140 | . . . . . . . . . 56 . . . . . . . 140 Highest-Rated Ally 31 | . . . . . . . . . 31 . . . . . . . 15 Total Orders 1 | . . . . . . . . . . . . . . 1 . . . STAY 1 | . . . . . . . . . . . . . . 1 . . . Ally Attacks 58 | . . . . . . . . . 17 . . . . . . . 41 Total Damage 1033 | . . . . . . . . . 358 . . . . . . . 675 Kills 9 | . . . . . . . . . 3 . . . . . . . 6 Allies Corrupted . | . . . . . . . . . . . . . . . . . . Allies Melted . | . . . . . . . . . . . . . . . . . . Intel | -11 -10 -9 -8 -7 -7 -7 -6 -5 -5 -5 -5 -5 -4 -3 -3 -3 -2 ------- Run | Yrd Mat Mat Mat Fac Was Fac Fac Fac Ext Cet Arc Hub Fac Res Qua Sec Res Active Infowar (turns) 5734 | 52 1081 . 86 419 30 348 359 253 312 46 498 241 370 295 569 388 387 Optics 2900 | . . . . . . . . . 106 46 498 241 370 295 569 388 387 Sensors 3945 | . . . . 383 30 324 359 253 296 46 498 209 353 291 560 343 . Structural 3015 | . . . . 377 30 324 359 253 285 . . . 168 295 569 355 . Seismic 2834 | 52 1081 . 86 419 30 348 359 253 206 . . . . . . . . Machine Analysis 3245 | . . . . . . . . 139 312 46 498 241 370 295 569 388 387 Robot Analysis Total . | . . . . . . . . . . . . . . . . . . Derelict Logs Recovered . | . . . . . . . . . . . . . . . . . . Drone Launches . | . . . . . . . . . . . . . . . . . . Drone Recoveries . | . . . . . . . . . . . . . . . . . . Exploration | -11 -10 -9 -8 -7 -7 -7 -6 -5 -5 -5 -5 -5 -4 -3 -3 -3 -2 ------------- Run | Yrd Mat Mat Mat Fac Was Fac Fac Fac Ext Cet Arc Hub Fac Res Qua Sec Res Turns Passed 9928 | 270 2129 2043 930 460 30 348 359 253 312 46 498 241 370 295 569 388 387 Spaces Moved 11282 | 108 824 884 385 828 131 777 966 740 830 133 63 540 921 881 1390 536 345 Core 117 | 5 . . . . . . . . . . . . . . . . 112 Treads 2212 | 103 824 884 385 16 . . . . . . . . . . . . . Legs . | . . . . . . . . . . . . . . . . . . Wheels 104 | . . . . . . . . . . . . . . . . . 104 Hover . | . . . . . . . . . . . . . . . . . . Flight 8849 | . . . . 812 131 777 966 740 830 133 63 540 921 881 1390 536 129 Fastest Speed 17 | 50 160 160 160 23 23 23 23 20 20 20 20 20 20 17 17 21 35 Average Speed 57 | 154 229 170 160 25 23 23 23 20 20 20 20 20 20 19 19 45 86 Slowest Speed 385 | 160 240 320 160 160 23 23 93 20 20 20 20 20 92 20 96 96 385 Overloaded Moves . | . . . . . . . . . . . . . . . . . . Propulsion Burnouts . | . . . . . . . . . . . . . . . . . . Robots Hopped 106 | . . . . 6 . . 6 1 33 3 2 1 3 14 13 24 . Potential Cave-ins 4 | . . . . . . . . . . . . 4 . . . . . Cave-ins Triggered . | . . . . . . . . . . . . . . . . . . Teleports 1 | . . . . . . . . . . . . . . . 1 . . Exploration Rate (%) 45 | 4 98 72 25 21 80 31 26 19 57 74 75 55 25 36 86 21 11 Regions Visited 17 Branch Regions 6 Pre-discovered Areas . | . . . . . . . . . . . . . . . . . . Known Exits Taken 11 | . . . . . . 1 1 1 1 1 1 1 1 1 1 1 . Unknown Exits Taken 4 | 1 1 1 1 . . . . . . . . . . . . . . Scrap Searched . | . . . . . . . . . . . . . . . . . . Spaces Dug 84 | . . . . 9 . 11 11 4 . . . 20 4 17 3 2 3 Terrain Destroyed 466 | . . . 21 9 . 11 11 4 39 . . 338 4 17 3 2 7 Melee 81 | . . . . 9 . 11 11 4 . . . 20 4 17 3 2 . Projectile 7 | . . . . . . . . . . . . . . . . . 7 AOE 378 | . . . 21 . . . . . 39 . . 318 . . . . . Terrain Rammed . | . . . . . . . . . . . . . . . . . . Walls Destroyed . | . . . . . . . . . . . . . . . . . . Machines Disabled . | . . . . . . . . . . . . . . . . . . Actions | -11 -10 -9 -8 -7 -7 -7 -6 -5 -5 -5 -5 -5 -4 -3 -3 -3 -2 --------- Run | Yrd Mat Mat Mat Fac Was Fac Fac Fac Ext Cet Arc Hub Fac Res Qua Sec Res Total 13862 | 181 947 1251 582 1046 130 883 1061 793 926 144 535 621 1087 950 1674 645 406 Wait 1919 | 47 33 220 85 176 . 64 65 18 115 13 465 44 142 49 239 115 29 Move 11075 | 107 823 883 384 816 130 776 953 737 774 127 58 537 914 854 1363 494 345 Hop 85 | . . . . 6 . . 6 1 22 2 2 1 3 12 13 17 . Pick Up 71 | 5 15 11 13 2 . . 4 5 . . . 1 3 2 7 3 . Fast Attach 81 | 7 3 8 5 4 . 6 5 . 3 . 2 3 9 2 16 1 7 Attach 48 | . . 6 7 10 . . 3 3 . . . 2 2 1 8 5 1 Detach 8 | . 1 . . . . . . . . . . . 1 . 4 2 . Swap 15 | . 3 3 2 . . . 1 2 2 . 1 1 . . . . . Drop 94 | . 3 15 10 16 . 6 7 2 1 . 2 4 6 1 18 3 . Fire 290 | 15 64 105 76 . . . . 1 6 . . 5 . . . . 18 Melee 158 | . 1 . . 16 . 31 16 24 3 2 5 23 7 19 6 5 . Ram 6 | . . . . . . . . . . . . . . . . . 6 Kick . | . . . . . . . . . . . . . . . . . . Crush 1 | . 1 . . . . . . . . . . . . . . . . Escape Stasis 10 | . . . . . . . . . . . . . . 10 . . . Rewire . | . . . . . . . . . . . . . . . . . . Trap . | . . . . . . . . . . . . . . . . . . Miscellaneous 1 | . . . . . . . 1 . . . . . . . . . . Route ------- -11/Scrapyard -10/Materials (discovered 5 exits: *Mat x3 / [*Min x2]) -9/Materials (discovered 3 exits: *Mat x2 / Min) -8/Materials -7/Factory -7/Waste -7/Factory -6/Factory (discovered 4 exits: *Fac x4) -5/Factory (discovered 5 exits: Fac x4 / *Ext) -5/Extension (discovered 2 exits: *Fac / *Cet) -5/Cetus -5/Archives (discovered 2 exits: *Hub x2) -5/Hub_04(d) (discovered 4 exits: *Fac x4) -4/Factory (discovered 3 exits: *Res / *Upp x2) -3/Research (discovered 5 exits: *Res x2 / Arm / *Qua x2) -3/Quarantine (discovered 3 exits: *Res / *Sec / *Frg) -3/Section 7 -2/Research History --------- Turn | Location | Event 3 | -11/Scrapyard | Discovered new exit (range 15) 271 | -11/Scrapyard | Entered Materials 310 | -10/Materials | Build established: Mutant 705 | -10/Materials | Discovered new exit (range 13) 926 | -10/Materials | Discovered new exit (range 6) 998 | -10/Materials | Discovered new exit (range 14) 1221 | -10/Materials | Core integrity fell below 50% 1377 | -10/Materials | Discovered new exit (range 14) 2265 | -10/Materials | Discovered new exit (range 13) 2400 | -10/Materials | Entered another Materials area 2400 | -9/Materials | Evolved 2 slots: Propulsion x2 2510 | -9/Materials | Repaired Lgt. Treads 3104 | -9/Materials | Build established: Scavenger-Mutant 3553 | -9/Materials | Discovered new exit (range 16) 3929 | -9/Materials | Identified exit to Mines 4130 | -9/Materials | Build established: Mutant 4309 | -9/Materials | Discovered new exit (range 15) 4443 | -9/Materials | Entered another Materials area 4443 | -8/Materials | Evolved 2 slots: Utility x2 4993 | -8/Materials | Discovered new exit (range 15) 5227 | -8/Materials | Lost 3 parts (1n1u1w) 5373 | -8/Materials | Entered Factory 5373 | -7/Factory | Evolved 2 slots: Propulsion x1, Utility x1 5762 | -7/Factory | Repaired Imp. VTOL Module 5833 | -7/Factory | Manually triggered Chute Trap 5833 | -7/Factory | Sucked down chute 5833 | -7/Factory | Entered Waste 5835 | -7/Waste | Spotted C-40 Crusher 5836 | -7/Waste | Spotted C-40 Crusher 5840 | -7/Waste | Spotted C-40 Crusher 5840 | -7/Waste | Spotted C-40 Crusher 5841 | -7/Waste | Spotted C-40 Crusher 5849 | -7/Waste | Spotted C-40 Crusher 5852 | -7/Waste | Discovered new exit (range 10) 5863 | -7/Waste | Identified exit to Factory 5863 | -7/Waste | Entered Factory 6004 | -7/Factory | Garrison activated, responded to threat 6189 | -7/Factory | Discovered new exit (range 9) 6194 | -7/Factory | Identified exit to Factory 6211 | -7/Factory | Entered another Factory area 6211 | -6/Factory | Evolved 2 slots: Utility x2 6233 | -6/Factory | Build established: Scout 6366 | -6/Factory | Identified exit to Factory 6570 | -6/Factory | Entered another Factory area 6570 | -5/Factory | Evolved 2 slots: Power x1, Propulsion x1 6747 | -5/Factory | Identified exit to Factory 6822 | -5/Factory | Discovered new exit (range 6) 6823 | -5/Factory | Identified exit to Extension 6823 | -5/Factory | Entered Extension 6846 | -5/Extension | Rescued a captive Derelict 6847 | -5/Extension | Rescued a captive Derelict 6883 | -5/Extension | Rescued a captive Derelict 6886 | -5/Extension | Rescued a captive Derelict 6888 | -5/Extension | Rescued a captive Derelict 6992 | -5/Extension | Spotted B-75 Beast 7098 | -5/Extension | Spotted B-75 Beast 7117 | -5/Extension | Discovered new exit (range 21) 7117 | -5/Extension | Discovered exit to Factory (range 20) 7121 | -5/Extension | Identified exit to Cetus 7135 | -5/Extension | Entered Cetus 7138 | -5/Cetus | Spotted Cetus Guard 7138 | -5/Cetus | Spotted Cetus Guard 7138 | -5/Cetus | Spotted Cetus Guard 7138 | -5/Cetus | Spotted Cetus Guard 7141 | -5/Cetus | Lost 3 parts (1p1u1w) 7177 | -5/Cetus | Discovered new exit (range 21) 7181 | -5/Cetus | Identified exit to Archives 7181 | -5/Cetus | Entered Archives 7674 | -5/Archives | Discovered new exit (range 22) 7675 | -5/Archives | Discovered new exit (range 22) 7677 | -5/Archives | Build established: Hacker-Scout 7679 | -5/Archives | Identified exit to Hub_04(d) 7679 | -5/Archives | Entered Hub_04(d) 7885 | -5/Hub_04(d) | Network Hub disabled 7906 | -5/Hub_04(d) | Network Hub disabled 7920 | -5/Hub_04(d) | Entered Factory 7920 | -4/Factory | Evolved 2 slots: Utility x2 7925 | -4/Factory | Discovered new exit (range 6) 7927 | -4/Factory | Identified exit to Upper Caves 7937 | -4/Factory | Lost 3 parts (1p1n1u) 7999 | -4/Factory | Repaired Imp. VTOL Module 8060 | -4/Factory | Repaired Imp. VTOL Module 8115 | -4/Factory | Discovered exit to Upper Caves (range 21) 8276 | -4/Factory | Discovered new exit (range 12) 8280 | -4/Factory | Identified exit to Research 8290 | -4/Factory | Entered Research 8290 | -3/Research | Evolved 2 slots: Propulsion x1, Utility x1 8296 | -3/Research | Spotted B-86 Titan 8323 | -3/Research | Spotted B-86 Titan 8402 | -3/Research | Discovered new exit (range 22) 8451 | -3/Research | Identified exit to Research 8476 | -3/Research | Discovered exit to Research (range 13) 8549 | -3/Research | Identified exit to Armory 8549 | -3/Research | Identified exit to Quarantine 8585 | -3/Research | Entered Quarantine 8592 | -3/Quarantine | Found Prototype Device 8592 | -3/Quarantine | Identified Exp. Thermal Shield 8677 | -3/Quarantine | Found Alien Artifact 8677 | -3/Quarantine | Identified Core Reset Matrix 8677 | -3/Quarantine | Used Core Reset Matrix 8681 | -3/Quarantine | Detected hypermatrix surge 8681 | -3/Quarantine | Sensed 12 artifacts in vicinity 8711 | -3/Quarantine | Found Subatomic Replicator 8716 | -3/Quarantine | Found Prototype Device 8716 | -3/Quarantine | Identified Adv. Kinecellerator 8838 | -3/Quarantine | Found Core Stripper 8981 | -3/Quarantine | Discovered exit to Research (range 14) 9110 | -3/Quarantine | Found Hpw. Transdimensional Reconstructor 9123 | -3/Quarantine | Warped through subspace 9138 | -3/Quarantine | Spotted Fortress 9152 | -3/Quarantine | Discovered new exit (range 6) 9152 | -3/Quarantine | Discovered new exit (range 6) 9153 | -3/Quarantine | Identified exit to Section 7 9153 | -3/Quarantine | Identified exit to Protoforge 9154 | -3/Quarantine | Entered Section 7 9155 | -3/Section 7 | Detected hypermatrix surge 9155 | -3/Section 7 | Sensed 24 artifacts in vicinity 9162 | -3/Section 7 | Found Integrity Redistributor 9162 | -3/Section 7 | Used Integrity Redistributor, redistributed integrity from core (-43) 9445 | -3/Section 7 | Spotted S7 Guard 9455 | -3/Section 7 | Spotted S7 Guard 9460 | -3/Section 7 | Spotted Alpha 7 9490 | -3/Section 7 | Used Subatomic Replicator to replicate Core Stripper 9535 | -3/Section 7 | Core integrity fell below 50% 9542 | -3/Section 7 | Entered Research 9542 | -2/Research | Evolved 2 slots: Weapon x2 9566 | -2/Research | Lost 12 parts (2p5n5u) 9674 | -2/Research | System corruption reached 10% 9686 | -2/Research | Lost 4 parts (1p1n1u1w) 9832 | -2/Research | Core integrity fell below 50% 9844 | -2/Research | Emitted hypermatrix ping 9849 | -2/Research | Assembled emerged from beneath the floor 9850 | -2/Research | Core integrity fell below 20% 9859 | -2/Research | Assembled emerged from beneath the floor 9916 | -2/Research | Lost 10 allies 9929 | -2/Research | Destroyed by H-88 Terminator with KE Penetrator Last Messages --------------- 09882_ as-86170 destroyed. 09883_ Slug penetrates Terminal. 09884_ Slug penetrates as-86385. 09884_ Slug penetrates Terminal. 09885_ Slug penetrates Particle Synthesizer. 09885_ Slug penetrates Terminal. 09893_ ALERT: Potential suspicious activity detected, Programmers report to Research Zone 9W. 09895_ Acquired Unknown Ballistic Cannon. 09895_ Identified Hardcell Cannon. 09899_ X UKB OWY MYHT7E/V1LQXDFNSROICLUVP 09915_ System corrupted: Matter fused (-8). 09919_ Slug penetrates Wall. 09926_ Penetrated by Slug. 09926_ Terrain Scan Processor destroyed. 09926_ Slug penetrates Wall. 09928_ Hardcell Cannon destroyed. 09929_ Critical hit (Burn: +37). 09929_ Slug penetrates G-73 Enforcer. 09929_ Xenon Bombardment Thruster destroyed. Map ----- +----------------------------------------------------+ | ?????????????????????????????????????????????????? | | ?????????????????????????????????????????????????? | | ?????????????????????????????????????????????????? | | ?????????????????????????????????????????????????? | | ?????????????????????????????????????????????????? | | ???????????###########???????????????????????????? | | ??????######= #???????????????????????????? | | ??????# # ]]! ##??????????????????????????? | | ??????# # ]! ] "#??????????????????????????? | | ??????# # ]! ##??????????????????????????? | | ??????# + #???????????????????????????? | | ??????# # ! #???????????????????????????? | | ??????# # ##??????????????????????????? | | ??????# # "#??????????????????????????? | | ??????# ##########"###????????????????????????? | | ??????# # #????????????????????????? | | ??????# # ! #????????????????????????? | | ??????# / #????????????????????????? | | ??????# # #????????????????????????? | | ??????# # #????????????????????????? | | ??????# ############+#????????????????????????? | | ??????# ############ ##???????????????????????? | | ??????# g #?############??????????? | | ??????# h # #??????????? | | ??????# g # ! *] #??????????? | | ??????# """"" h @ ]= #?????????? | | ??????# """"" gg# #??????????? | | ????### """"" g g# #??????????? | | ????#"" g g #####;######+#??????????? | | ????#"" gg +?????????? | | ????#"" t #?????????? | | ????#T """"" w +?????????? | | ????#"" """"" #?????????? | | ????#"" """"" #############+### #?????????? | | ????#"" #?????????????????? #?????????? | | ????### #????????????????????#?????????? | | ??????# #??????????????????????????????? | | ??????# % #??????????????????????????????? | | ??????# #??????????????????????????????? | | ??????# #?????"""??????????????????????? | | ????### "" #?????"""???????????????"""""??? | | ????#"" ""% #?????"""???????????????"""T""?? | | ????#"" ""= %#???????????????????????????""?? | | ????#"T T" [ #????????????? ???????????????? | | ????#"" """ %=###/####### #??????????????? | | ????#"" ""*=*= + #??????????????? | | ????### % *%[ ##??????????????????????? | | ??????# % %% #???????????????????????? | | ??????# % % #???????????????????????? | | ??????##/##### ! #### ###???????????????????????? | +----------------------------------------------------+ Best States ------------- Heat Dissipation 77 Energy Generation 41 Energy Capacity 420 Matter Stores 300 Matter Capacity 300 Sight Range 22 Robot Scan Range 18 Terrain Scan Density 85 Armor Coverage 450 Resistance: KI 20 Evasion (%) 66 Recoil Reduction 4 Offensive Hacking 38 Defensive Hacking 24 Item Schematics ----------------- None Robot Schematics ------------------ None Fabricated ------------ Nothing Repaired ---------- Lgt. Treads | 11% | -9/Materials Imp. VTOL Module | 20% | -7/Factory Imp. VTOL Module | 28% | -4/Factory Imp. VTOL Module | 32% | -4/Factory Alien Tech Used ----------------- Core Reset Matrix Core Stripper High-powered Transdimensional Reconstructor Integrity Redistributor Subatomic Replicator Achievements -------------- None Challenges ------------ None Game ------ Seed SalvagingSubatomicSplitter Manual? 0 Play Time 01:53:38 Cumulative 127.5 hours Start 2025.06.10 @ 04:04:18 End 2025.06.10 @ 06:01:17 Sessions 3 Manual Loads 0 Difficulty Rogue Special Mode None Game No. 132 Rogue 132 Adventurer 0 Explorer 0 Win Type - Total 6 Types 4/0/0/2/0/0/0/0/0/0 Lore% 59 Gallery% 57 Achievement% 56 Wizard Run 0 Options --------- Layout 1 ASCII 0 Keyboard 0 Movement Mouse Keybinds 0 Fullscreen 1 Font 32/SmallcapsGlow Map View 77x35 Zoom Use 0% Tactical HUD 1 Map Filters NONE Filters NONE Steam 1 RUN: 1ba7c9e1-1a07-4172-b65d-e00bfbeae748